{"text_format":"1","workbook":"xlsx","n_sheets":2,"sheets":["Kalibreringsbevis","Temperaturregistrering"],"not_rendered":{"charts":0,"images":2,"macros":1,"external_links":0,"defined_names":0,"comments":0,"pivot_tables":0},"unopened":[],"bounds":{"document_bytes":16777216,"sheet_cells":100000,"rows_first":2000,"rows_last":500,"rows_between":2000,"halvings":0,"cell_chars":16384,"cell_head_chars":4096},"cells_cut":0,"cells_raw":0,"read":"whole","date_system":"1900"}

{"sheet":"Kalibreringsbevis","index":0,"n_rows":11,"n_cols":6,"rows_kept":11,"cut":false,"hidden":false,"merged":[]}
["EQSDokument 38593 v 1.0"]
["FLUKE-termometer, CALIBRATION RESULTS"]
["Kalibreringsdato:","2025-10-23"]
["ID ved kalibreringslab:",83987,"MTA Nr:",14432]
[]
["Måleområde\nNavn","Sann temperatur","Avlest temperatur","Avvik","Leverandørs spesifikasjoner","Måleusikkerhet (k=2)"]
["Fryser -40 ⁰C",-39.97,-38.799999999999997,{"$f":"C7-B7","v":1.1700000000000017},2.2200000000000002,0.42]
["Fryser -20 ⁰C",-19.98,-19.149999999999999,0.83000000000000185,2.2200000000000002,0.42]
["Kjøleskap 0 ⁰C",4.01,4.43,0.41999999999999993,1.1399999999999999,0.42]
["Romtemperatur 20 ⁰C",21.99,22.2,0.21000000000000085,1.1399999999999999,0.42]
["Inkubator 37 ⁰C",37.01,37,-9.9999999999980105E-3,0.15,0.42]

{"sheet":"Temperaturregistrering","index":1,"n_rows":29,"n_cols":5,"rows_kept":29,"cut":false,"hidden":false,"merged":[[25,0,25,1]]}
[{"$f":"Kalibreringsbevis!A1","v":"EQSDokument 38593 v 1.0"}]
["Temperaturkontroll av brukstermometeret knyttet til:"]
["Instr.navn:"]
["TEK nr:"]
[]
["Dato for disse målingene:"]
["Identitet til brukstermometer:"]
["Med.TeknNr til FLUKE-termometer:",{"$f":"Kalibreringsbevis!D4","v":14432}]
["Utført (Sign):"]
[]
[null,"Brukstermometer","FLUKE-termometer"]
["Måling 1"]
["Måling 2"]
["Måling 3"]
["Gjennomsnitt",{"$f":"AVERAGE(B12:B14)","v":{"$error":"#DIV/0!"}},{"$f":"AVERAGE(C12:C14)","v":{"$error":"#DIV/0!"}}]
[]
["∆ FLUKE- og brukstermometer",{"$f":"C15-B15","v":{"$error":"#DIV/0!"}},"Velg temperaturtype i liste:"]
["Korreksjon til FLUKE-termometer i aktuell måleområde",{"$f":"IF(C18=Kalibreringsbevis!A7,Kalibreringsbevis!D7,IF(C18=Kalibreringsbevis!A8,Kalibreringsbevis!D8,IF(C18=Kalibreringsbevis!A9,Kalibreringsbevis!D9,IF(C18=Kalibreringsbevis!A10,Kalibreringsbevis!D10,IF(C18=Kalibreringsbevis!A11,Kalibreringsbevis!D11,\"\")))))","v":-9.9999999999980105E-3},"Inkubator 37 ⁰C"]
["Korreksjon til brukstermometeret",{"$f":"B17+B18","v":{"$error":"#DIV/0!"}}]
["Måleusikkerhet brukstermometer"]
["Måleusikkerhet FLUKE-termometer",{"$f":"IF(C18=Kalibreringsbevis!A7,Kalibreringsbevis!F7,IF(C18=Kalibreringsbevis!A8,Kalibreringsbevis!F8,IF(C18=Kalibreringsbevis!A9,Kalibreringsbevis!F9,IF(C18=Kalibreringsbevis!A10,Kalibreringsbevis!F10,IF(C18=Kalibreringsbevis!A11,Kalibreringsbevis!F11,\"\")))))","v":0.42}]
["Samlet måleusikkerhet",{"$f":"SQRT(B20^2+B21^2)","v":0.42}]
[null,null,"Nedre grense","Øvre grense"]
["Ønsket temperatur",null,{"$f":"B24-B25","v":0},{"$f":"B24+B25","v":0}]
["Aksjonsgrense"]
["Korrigering pga måleusikkerhet og nøyaktighet",null,"Nedre grense","Øvre grense","Aksjonsgrense"]
["Ønsket temperatur",{"$f":"B24-B19","v":{"$error":"#DIV/0!"}},{"$f":"B27-E27","v":{"$error":"#DIV/0!"}},{"$f":"B27+E27","v":{"$error":"#DIV/0!"}},{"$f":"ABS(B25-B22)","v":0.42}]
[null,{"$f":"IF(ABS(B27-B24)<B25*0.2,B24,B27)","v":{"$error":"#DIV/0!"}},{"$f":"B28-E28","v":{"$error":"#DIV/0!"}},{"$f":"B28+E28","v":{"$error":"#DIV/0!"}},{"$f":"IF(ABS(B27-B24)<B25*0.2,B25,ABS(B25-B22))","v":{"$error":"#DIV/0!"}}]
["Kommentarer:"]